bitfinex/quotes_SOLUSD_20251009
["timestamp","ask_amount","ask_price","bid_price","bid_amount"]
[1760004328936,31.7,222.14,222.13,4.49764341]
[1760004329613,37.56985166,222.14,222.13,4.49764341]
[1760004331320,37.56985166,222.14,222.13,4.71627441]
[1760004331612,31.7,222.14,222.13,5.40627441]
[1760004331793,4.50085516,222.18,222.13,5.40627441]
[1760004331991,4.50024751,222.21,222.17,4.49764341]
[1760004332227,31.74,222.2,222.19,4.49764341]
[1760004332427,31.74,222.2,222.19,5.18764341]
[1760004332605,136.16818605,222.22,222.19,5.18764341]
[1760004332606,134.8,222.22,222.19,5.18764341]
[1760004332813,31.74,222.21,222.19,5.18764341]
[1760004333008,31.74,222.21,222.2,0.69]
[1760004333610,139.30005306,222.22,222.2,0.69]
[1760004333832,22.16818605,222.25,222.2,0.69]
[1760004334109,31.74,222.24,222.22,4.49764341]
[1760004334501,31.74,222.24,222.22,5.18764341]
[1760004334695,36.23983636,222.24,222.22,5.18764341]
[1760004336816,134.8,222.28,222.23,0.69]
[1760004337005,20.8,222.25,222.24,0.69]
[1760004337205,52.52,222.25,222.22,4.49764341]
[1760004337824,52.52,222.25,222.23,0.69]
[1760004338132,52.52,222.25,222.24,0.69]
[1760004338336,57.01948421,222.25,222.22,4.49764341]
[1760004338510,1.36818605,222.24,222.22,4.49764341]
[1760004338825,1.36818605,222.24,222.22,5.18764341]
[1760004338826,31.72,222.23,222.22,5.18764341]
[1760004340097,36.2198425,222.23,222.22,5.18764341]
[1760004340537,38.35885683,222.23,222.22,4.49764341]
[1760004340703,31.72,222.23,222.22,5.18764341]
[1760004342923,36.2198425,222.23,222.22,5.18764341]
[1760004343127,36.2198425,222.23,222.22,4.49764341]
[1760004343530,49.60846309,222.23,222.18,4.49764341]
[1760004343714,2.13901433,222.19,222.18,4.49764341]
[1760004343913,33.83901433,222.19,222.18,4.49764341]
[1760004344219,31.7,222.19,222.18,4.49764341]
[1760004344419,2.13901433,222.21,222.18,5.20764341]
[1760004344630,31.7,222.2,222.19,0.71]
[1760004344837,139.30006219,222.22,222.2,0.71]
[1760004345138,31.7,222.21,222.2,0.71]
[1760004345331,31.7,222.21,222.2,5.20764341]
[1760004347722,36.20024751,222.21,222.2,4.49764341]
[1760004347906,38.33926184,222.21,222.2,4.49764341]
[1760004348407,20.8,222.19,222.16,4.49764341]
[1760004348618,2.13901433,222.17,222.16,4.49764341]
[1760004349627,6.64007207,222.17,222.16,4.49764341]
[1760004350945,2.13901433,222.17,222.16,5.20764341]
[1760004351630,2.13901433,222.17,222.16,4.49764341]
[1760004352322,2.13901433,222.17,222.16,0.71]
[1760004352521,2.13901433,222.17,222.16,5.20764341]
[1760004352916,2.13901433,222.17,222.16,4.49764341]
[1760004353330,36.20088162,222.18,222.16,0.71]
[1760004353331,31.7,222.18,222.16,0.71]
[1760004353526,134.8,222.22,222.2,4.49764341]
[1760004353736,31.7,222.21,222.2,4.49764341]
[1760004354429,31.7,222.21,222.2,5.20764341]
[1760004355149,2.13901433,222.27,222.23,4.49764341]
[1760004355444,31.72,222.26,222.23,4.49764341]
[1760004355646,31.72,222.26,222.24,0.71]
[1760004356019,36.21929872,222.26,222.24,0.71]
[1760004356315,36.21929872,222.26,222.23,4.49764341]
[1760004356316,4.49889649,222.28,222.25,0.71]
[1760004356537,31.7,222.27,222.26,0.71]
[1760004358328,4.49889649,222.28,222.27,4.49764341]
[1760004358534,36.19889649,222.28,222.27,4.49764341]
[1760004358718,39.22603249,222.28,222.25,4.49764341]
[1760004358919,2.13901433,222.26,222.22,4.49764341]
[1760004359120,2.13901433,222.23,222.2,4.49764341]
[1760004359340,2.13901433,222.21,222.2,4.49764341]
[1760004359545,2.13901433,222.21,222.15,4.49764341]
[1760004359546,20.8,222.18,222.15,4.49764341]
[1760004359843,2.13901433,222.16,222.15,4.49764341]
[1760004360034,2.13901433,222.16,222.13,4.71627441]
[1760004360225,20.8,222.18,222.13,4.71627441]
[1760004360226,2.13901433,222.14,222.13,4.71627441]
[1760004360544,33.87901433,222.15,222.13,5.42627441]
[1760004360848,2.13901433,222.15,222.14,0.71]
[1760004361027,31.74,222.15,222.14,0.71]
[1760004361932,2.13901433,222.16,222.14,0.71]
[1760004362139,31.72,222.15,222.14,0.71]
[1760004363146,31.72,222.15,222.14,5.20764341]
[1760004364148,33.85901433,222.15,222.14,4.49764341]
[1760004364446,38.3604773,222.15,222.14,4.49764341]
[1760004364818,33.85901433,222.15,222.14,4.49764341]
[1760004365168,2.13901433,222.2,222.16,4.49764341]
[1760004365169,20.8,222.18,222.16,4.49764341]
[1760004365459,31.74,222.17,222.16,4.49764341]
[1760004365649,31.74,222.17,222.16,5.20764341]
[1760004368630,31.74,222.17,222.16,4.49764341]
[1760004368832,36.24105774,222.17,222.16,4.49764341]
[1760004369556,31.74,222.17,222.16,4.49764341]
[1760004369862,31.74,222.17,222.16,5.20764341]
[1760004371471,2.13901433,222.18,222.16,5.20764341]
[1760004371690,134.8,222.19,222.18,4.49764341]
[1760004371864,166.52,222.19,222.18,5.20764341]
[1760004373361,171.02065259,222.19,222.18,4.49764341]
[1760004373672,171.02065259,222.19,222.16,4.49764341]
[1760004373856,2.13901433,222.17,222.16,4.49764341]
[1760004374051,33.87901433,222.17,222.16,4.49764341]
[1760004374254,20.8,222.15,222.13,0.218631]
[1760004374463,33.89901433,222.14,222.13,4.71627441]
[1760004375676,31.76,222.14,222.13,5.42627441]
[1760004376346,31.76,222.14,222.13,4.71627441]
[1760004376551,33.89901433,222.14,222.13,4.71627441]
[1760004377045,31.76,222.14,222.13,5.42627441]
[1760004379956,136.93901433,222.19,222.15,4.49764341]
[1760004380266,31.76,222.18,222.17,4.49764341]
[1760004380568,166.56,222.18,222.17,4.49764341]
[1760004381779,166.56,222.18,222.17,5.20764341]
[1760004382647,166.54,222.18,222.17,5.20764341]
[1760004382849,134.8,222.18,222.17,5.20764341]
[1760004383051,2.13901433,222.23,222.2,4.49764341]
[1760004383260,31.74,222.22,222.21,0.71]
[1760004383647,134.8,222.24,222.23,4.49764341]
[1760004383865,31.76,222.24,222.23,5.20764341]
[1760004384566,5.43042884,222.25,222.23,7.34665774]
[1760004384754,5.43042884,222.25,222.24,0.71]
[1760004384942,2.13901433,222.31,222.28,4.49764341]
[1760004385143,31.78,222.3,222.28,5.20764341]
[1760004385575,31.78,222.3,222.28,4.49764341]
[1760004385875,36.27845284,222.3,222.28,4.49764341]
[1760004386994,31.78,222.3,222.28,4.49764341]
[1760004387556,31.76,222.29,222.28,4.49764341]
[1760004387986,31.76,222.29,222.28,5.21764341]
[1760004389767,38.39764224,222.29,222.28,4.49764341]
[1760004389966,38.39764224,222.29,222.26,4.49764341]
[1760004390486,33.89901433,222.29,222.28,4.49764341]
[1760004390853,31.76,222.29,222.28,5.21764341]
[1760004392678,31.76,222.29,222.28,4.49764341]
[1760004393592,31.74,222.29,222.28,4.49764341]
[1760004394394,31.74,222.29,222.28,5.21764341]
[1760004394772,31.74,222.29,222.28,4.49764341]
[1760004397072,141.43705676,222.32,222.3,4.49764341]
[1760004397259,31.72,222.31,222.27,8.99666396]
[1760004397460,31.72,222.31,222.3,4.49764341]
[1760004397857,31.72,222.31,222.3,5.21764341]
[1760004398986,8.15401652,222.33,222.32,4.49764341]
[1760004399190,39.87401652,222.33,222.32,5.21764341]
[1760004399681,31.72,222.33,222.32,5.21764341]
[1760004399983,2.13901433,222.36,222.32,5.21764341]
[1760004399984,31.72,222.34,222.32,5.21764341]
[1760004400180,4.49722591,222.36,222.33,0.72]
[1760004400372,31.72,222.35,222.34,0.72]
[1760004400872,31.72,222.35,222.34,5.21764341]
[1760004401183,31.7,222.35,222.34,5.21764341]
[1760004401995,31.7,222.35,222.34,4.49764341]
[1760004402191,37.56497502,222.35,222.32,4.49764341]
[1760004402389,1.36756104,222.33,222.32,4.49764341]
[1760004402594,33.06756104,222.33,222.3,4.49764341]
[1760004402801,1.36756104,222.31,222.28,4.49764341]
[1760004403095,31.72,222.3,222.28,4.49764341]
[1760004403597,31.72,222.3,222.28,5.21764341]
[1760004405876,31.72,222.3,222.28,4.49764341]
[1760004406374,31.72,222.3,222.28,5.19764341]
[1760004407594,31.72,222.3,222.29,0.7]
[1760004409888,1.36756104,222.33,222.32,4.49764341]
[1760004410088,33.02756104,222.33,222.32,4.49764341]
[1760004410609,37.52537959,222.33,222.32,4.49764341]
[1760004411108,33.02756104,222.33,222.32,4.49764341]
[1760004411403,1.36756104,222.33,222.32,4.49764341]
[1760004411707,33.02756104,222.33,222.32,4.49764341]
[1760004411906,1.36756104,222.33,222.32,4.49764341]
[1760004412116,33.02756104,222.33,222.32,4.49764341]
[1760004413185,37.52537959,222.33,222.32,4.49764341]
[1760004413384,36.15781855,222.33,222.32,4.49764341]
[1760004413699,37.52537959,222.33,222.32,4.49764341]
[1760004413893,48.76992598,222.33,222.3,4.49764341]
[1760004414091,1.36756104,222.31,222.3,4.49764341]
[1760004414314,33.02756104,222.31,222.26,4.49764341]
[1760004414488,1.36756104,222.29,222.26,5.19764341]
[1760004414688,31.66,222.28,222.26,5.19764341]
[1760004416913,37.52648826,222.28,222.26,4.49764341]
[1760004417113,37.52648826,222.28,222.26,5.19764341]
[1760004417315,36.15892722,222.28,222.26,5.19764341]
[1760004418723,31.66,222.28,222.27,0.7]
[1760004419109,4.49721172,222.36,222.32,4.49764341]
[1760004419396,4.49721172,222.36,222.33,0.7]
[1760004419397,31.66,222.35,222.33,0.7]
[1760004419611,31.66,222.35,222.32,4.49764341]
[1760004420192,1.36756104,222.33,222.32,4.49764341]
[1760004420505,53.82756104,222.33,222.27,4.49764341]
[1760004420705,1.36756104,222.28,222.27,4.49764341]
[1760004420893,33.04756104,222.28,222.27,4.49764341]
[1760004422218,37.54639134,222.28,222.27,4.49764341]
[1760004422720,4.49857955,222.3,222.29,4.49764341]
[1760004422918,36.17857955,222.3,222.29,4.49764341]
[1760004423310,20.8,222.33,222.29,5.19764341]
[1760004423509,31.68,222.32,222.3,0.7]
[1760004423698,31.68,222.32,222.31,0.7]
[1760004423892,1.36756104,222.34,222.31,0.7]
[1760004424111,31.68,222.33,222.32,0.7]
[1760004425309,31.68,222.33,222.31,4.49764341]
[1760004425521,31.68,222.33,222.31,5.19764341]
[1760004425827,36.17795057,222.33,222.31,5.19764341]
[1760004427028,37.54551161,222.33,222.31,4.49764341]
[1760004427205,36.17795057,222.33,222.31,4.49764341]
[1760004427407,31.68,222.33,222.31,4.49764341]
[1760004427722,31.68,222.33,222.31,5.19764341]
[1760004427930,166.48,222.33,222.31,5.19764341]
[1760004428301,170.97787423,222.33,222.31,5.19764341]
[1760004428915,166.48,222.33,222.32,0.7]
[1760004429532,134.8,222.33,222.32,0.7]
[1760004430530,139.29781855,222.33,222.31,4.49764341]
[1760004430831,33.02756104,222.32,222.31,4.49764341]
[1760004431717,31.66,222.32,222.31,5.19764341]
[1760004432029,31.66,222.32,222.31,4.49764341]
[1760004432932,139.29788189,222.33,222.31,4.49764341]
[1760004433134,31.66,222.32,222.31,4.49764341]
[1760004434524,31.66,222.32,222.31,5.19764341]
[1760004435634,134.8,222.33,222.31,5.19764341]
[1760004435836,134.8,222.33,222.32,0.7]
[1760004435837,166.46,222.33,222.32,0.7]
[1760004437011,134.8,222.33,222.32,0.7]
[1760004437627,134.8,222.33,222.32,5.19802087]
[1760004437825,134.8,222.33,222.32,0.7]
[1760004438217,134.8,222.33,222.31,4.49764341]
[1760004438532,134.8,222.33,222.32,0.7]
[1760004438724,166.44,222.33,222.32,0.7]
[1760004439636,134.8,222.33,222.32,0.7]
[1760004441144,134.8,222.33,222.31,4.49764341]
[1760004441520,134.8,222.33,222.31,5.19764341]
[1760004441722,31.64,222.32,222.31,5.19764341]
[1760004442019,31.64,222.32,222.31,4.49764341]
[1760004442427,31.64,222.32,222.31,5.19764341]
[1760004443626,31.64,222.32,222.31,9.69586661]
[1760004443823,166.44,222.33,222.31,9.69586661]
[1760004444036,134.8,222.33,222.32,0.7]
[1760004444421,134.8,222.41,222.35,4.49764341]
[1760004444619,5.8635596,222.42,222.39,4.49764341]
[1760004444814,31.64,222.41,222.39,4.49764341]
[1760004446035,36.13627139,222.41,222.39,4.49764341]
[1760004447752,20.8,222.38,222.35,4.49764341]
[1760004447950,1.36756104,222.36,222.35,4.49764341]
[1760004448249,5.86477276,222.36,222.35,4.49764341]
[1760004450556,4.49721172,222.36,222.35,4.49764341]
[1760004454056,15.74024104,222.36,222.33,4.49764341]
[1760004454225,15.74024104,222.36,222.34,4.49764341]
[1760004454226,1.36756104,222.35,222.34,4.49764341]
[1760004454555,31.64,222.35,222.34,5.19764341]
[1760004455439,36.13741398,222.35,222.34,5.19764341]
[1760004455944,36.13741398,222.35,222.34,4.49764341]
[1760004456147,37.50497502,222.35,222.34,4.49764341]
[1760004456543,37.50497502,222.35,222.32,5.19764341]
[1760004456730,37.50497502,222.35,222.34,4.49764341]
[1760004457068,48.74850998,222.35,222.3,4.49764341]
[1760004457243,1.36756104,222.33,222.3,4.49764341]
[1760004457558,31.64,222.32,222.3,4.49764341]
[1760004457734,31.64,222.32,222.3,5.19764341]
[1760004458054,31.64,222.32,222.31,0.7]
[1760004459062,31.64,222.33,222.32,4.49764341]
[1760004459234,31.64,222.33,222.32,5.19764341]
[1760004459433,1.36756104,222.36,222.35,4.49764341]
[1760004459644,33.00756104,222.36,222.35,5.19764341]
[1760004460139,37.50477276,222.36,222.35,4.49764341]
[1760004460756,5.86477276,222.36,222.35,4.49764341]
[1760004460956,37.50477276,222.36,222.35,5.19764341]
[1760004461136,37.50477276,222.36,222.35,4.49764341]
[1760004461336,20.8,222.34,222.31,4.49764341]
[1760004461556,5.86558191,222.32,222.31,4.49764341]
[1760004461858,6.63572376,222.32,222.31,4.49764341]
[1760004462028,4.49802087,222.32,222.31,4.49764341]
[1760004462766,38.27554295,222.33,222.31,5.19764341]
[1760004464553,38.27554295,222.33,222.31,4.49764341]
[1760004464757,6.63554295,222.33,222.31,4.49764341]
[1760004464969,31.64,222.32,222.31,4.49764341]
[1760004465739,31.64,222.32,222.31,5.17764341]
[1760004468871,4.49788627,222.33,222.31,5.17764341]
[1760004469072,31.64,222.32,222.31,5.17764341]
[1760004469446,20.8,222.37,222.31,5.17764341]
[1760004469647,3.78337833,222.44,222.39,4.49764341]
[1760004469845,25.96502537,222.43,222.39,5.17764341]
[1760004470040,34.66732248,222.42,222.4,0.68]
[1760004470344,36.13601491,222.42,222.4,0.68]
[1760004472543,20.8,222.43,222.41,5.17764341]
[1760004472740,34.66638247,222.42,222.41,4.49764341]
[1760004472943,3.78337833,222.48,222.41,5.17764341]
[1760004473173,31.64,222.47,222.43,4.49764341]
[1760004473471,31.64,222.47,222.44,0.68]
[1760004474065,41.29759147,222.46,222.45,0.68]
[1760004474364,41.29759147,222.46,222.43,5.17764341]
[1760004474565,38.27289303,222.46,222.44,0.68]
[1760004475777,38.27289303,222.46,222.43,4.49764341]
[1760004476970,38.27289303,222.46,222.43,5.17764341]
[1760004478177,38.27289303,222.46,222.43,4.49764341]
[1760004478342,38.27289303,222.46,222.43,5.17764341]
[1760004478545,38.27289303,222.46,222.44,0.68]
[1760004479156,38.27289303,222.46,222.43,4.49764341]
[1760004479355,38.27289303,222.46,222.43,5.17764341]
[1760004479760,38.27289303,222.46,222.43,4.49764341]
[1760004480464,38.27289303,222.46,222.43,5.17764341]
[1760004481070,2.13770289,222.45,222.43,5.17764341]
[1760004481268,31.64,222.44,222.43,5.17764341]
[1760004482057,36.13559431,222.44,222.43,4.49764341]
[1760004482951,38.2732972,222.44,222.41,4.49764341]
[1760004483160,2.13770289,222.42,222.39,4.49764341]
[1760004483358,2.13770289,222.4,222.39,5.17764341]
[1760004483566,31.64,222.4,222.39,5.17764341]
[1760004483762,2.13770289,222.42,222.41,4.49764341]
[1760004484075,20.8,222.44,222.42,4.49764341]
[1760004484254,31.64,222.43,222.42,5.17764341]
[1760004485874,36.13579643,222.43,222.42,5.17764341]
[1760004486975,22.93770289,222.44,222.42,5.17764341]
[1760004486976,6.6330823,222.46,222.42,5.17764341]
[1760004487173,6.6330823,222.46,222.37,11.24233786]
[1760004487174,31.64,222.45,222.44,4.49764341]
[1760004487351,134.8,222.49,222.46,4.49764341]
[1760004487552,141.43236089,222.49,222.46,5.17764341]
[1760004487759,31.64,222.48,222.46,5.17764341]
[1760004488271,31.64,222.48,222.46,4.49764341]
[1760004488773,2.13770289,222.47,222.46,5.17764341]
[1760004489549,31.64,222.48,222.46,5.17764341]
[1760004489874,36.13489676,222.48,222.46,4.49764341]
[1760004490077,38.27259965,222.48,222.46,5.17764341]
[1760004491176,33.77770289,222.48,222.46,5.17764341]
[1760004491486,31.64,222.48,222.46,5.17764341]
[1760004492373,36.13487533,222.48,222.46,5.17764341]
[1760004494457,31.64,222.48,222.46,5.17764341]
[1760004494686,134.8,222.49,222.48,4.49764341]
[1760004494979,166.42,222.49,222.48,5.17764341]
[1760004496869,166.42,222.49,222.48,4.49764341]
[1760004499262,166.42,222.49,222.48,5.17764341]
[1760004500786,170.91458402,222.49,222.48,4.49764341]
[1760004501480,173.05228691,222.49,222.48,4.49764341]
[1760004502192,173.05228691,222.49,222.48,5.17764341]
[1760004502368,173.05228691,222.49,222.48,4.49764341]
[1760004503466,173.05228691,222.49,222.46,5.17764341]
[1760004503965,173.05228691,222.49,222.46,4.49764341]
[1760004503966,168.55770289,222.49,222.46,4.49764341]
[1760004504168,168.55770289,222.49,222.46,5.17764341]
[1760004504499,168.55770289,222.49,222.47,0.68]
[1760004504993,168.55770289,222.49,222.46,4.49764341]
[1760004505200,168.55770289,222.49,222.46,5.18764341]
[1760004505201,173.05231072,222.49,222.46,5.18764341]
[1760004505496,173.05231072,222.49,222.46,4.49764341]
[1760004505666,2.13770289,222.47,222.46,4.49764341]
[1760004505869,33.75770289,222.47,222.46,4.49764341]
[1760004506170,33.75770289,222.47,222.46,5.18764341]
[1760004506591,33.75770289,222.47,222.46,4.49764341]
[1760004506784,134.8,222.46,222.44,4.49764341]
[1760004507090,20.8,222.42,222.4,4.49764341]
[1760004507290,36.11625013,222.41,222.4,4.49764341]
[1760004507789,36.11625013,222.41,222.38,4.49764341]
[1760004507980,2.13770289,222.39,222.38,4.49764341]
[1760004508184,31.62,222.39,222.38,4.49764341]
[1760004508484,33.75770289,222.39,222.38,4.49764341]
[1760004508679,31.62,222.39,222.38,4.49764341]
[1760004509091,33.75770289,222.39,222.38,4.49764341]
[1760004509293,38.25430795,222.39,222.38,4.49764341]
[1760004509470,38.25430795,222.39,222.34,4.49764341]
[1760004509675,2.13770289,222.35,222.34,5.18764341]
[1760004509873,33.75770289,222.35,222.34,5.18764341]
[1760004510390,31.62,222.35,222.34,5.18764341]
[1760004511169,31.62,222.36,222.34,5.18764341]
[1760004511391,31.62,222.36,222.35,0.69]
[1760004511596,31.62,222.36,222.34,4.49764341]
[1760004511797,31.62,222.36,222.34,5.18764341]
[1760004511970,31.62,222.36,222.35,0.69]
[1760004512678,155.6,222.41,222.35,0.69]
[1760004512993,31.62,222.4,222.38,4.49764341]
[1760004513197,31.62,222.4,222.39,0.69]
[1760004513997,134.8,222.41,222.4,4.49764341]
[1760004514193,166.42,222.41,222.4,5.18764341]
[1760004514887,166.42,222.41,222.4,4.49764341]
[1760004515401,166.42,222.41,222.4,5.18764341]
[1760004515894,166.42,222.41,222.4,4.49764341]
[1760004516103,166.42,222.41,222.4,5.18764341]
[1760004519906,134.8,222.41,222.4,5.18764341]
[1760004520085,166.42,222.41,222.4,5.18764341]
[1760004523600,134.8,222.41,222.4,5.18764341]
[1760004523802,136.93770289,222.49,222.46,4.49764341]
[1760004523990,3.02220224,222.48,222.47,0.69]
[1760004524190,31.62,222.48,222.46,4.49764341]
[1760004524593,31.62,222.48,222.47,0.71]
[1760004527409,166.42,222.49,222.47,0.71]
[1760004527715,31.62,222.48,222.47,0.71]
[1760004527908,31.62,222.48,222.46,4.49764341]
[1760004528109,31.62,222.48,222.47,0.71]
[1760004529321,134.8,222.49,222.48,4.49764341]
[1760004529514,25.29380126,222.53,222.51,4.49764341]
[1760004529713,1.36595834,222.51,222.49,4.49764341]
[1760004529901,32.98595834,222.5,222.49,4.49764341]
[1760004530714,31.62,222.5,222.49,4.49764341]
[1760004532303,31.62,222.5,222.49,5.20764341]
[1760004533815,31.62,222.5,222.49,4.49764341]
[1760004534416,31.62,222.5,222.49,5.20764341]
[1760004535322,31.62,222.5,222.49,4.49764341]
[1760004536032,20.8,222.53,222.49,5.17764341]
[1760004536200,31.6,222.52,222.51,4.49764341]
[1760004536724,20.8,222.55,222.51,4.49764341]
[1760004537034,31.6,222.54,222.53,4.49764341]
[1760004539031,36.09357418,222.54,222.53,4.49764341]
[1760004540039,36.09357418,222.54,222.53,5.17764341]
[1760004540243,36.09357418,222.54,222.53,4.49764341]
[1760004540513,37.45953252,222.54,222.53,4.49764341]
[1760004540703,37.45953252,222.54,222.51,4.49764341]
[1760004540903,1.36595834,222.52,222.51,4.49764341]
[1760004541121,32.96595834,222.52,222.51,4.49764341]
[1760004541323,32.96595834,222.52,222.49,4.49764341]
[1760004541512,1.36595834,222.5,222.49,4.49764341]
[1760004541710,32.96595834,222.5,222.49,4.49764341]
[1760004542123,31.6,222.5,222.49,4.49764341]
[1760004542334,31.6,222.5,222.49,5.17764341]
[1760004542704,31.6,222.51,222.49,5.17764341]
[1760004542909,31.6,222.51,222.5,0.68]
[1760004543606,31.6,222.52,222.5,0.68]
[1760004544006,31.6,222.52,222.48,4.49477713]
[1760004544007,31.6,222.52,222.51,5.17764341]
[1760004544418,31.6,222.52,222.51,4.49764341]
[1760004544916,31.6,222.52,222.51,5.17764341]
[1760004545314,31.6,222.52,222.51,4.49764341]
[1760004547009,36.09397806,222.52,222.51,4.49764341]
[1760004547627,31.6,222.52,222.51,5.17764341]
[1760004547936,31.6,222.52,222.51,4.49764341]
[1760004550416,31.6,222.52,222.51,5.17764341]
[1760004551241,31.6,222.53,222.51,5.17764341]
[1760004551432,31.6,222.53,222.52,0.68]
[1760004553961,5.85941763,222.55,222.52,0.68]
[1760004554156,31.6,222.54,222.52,0.68]
[1760004554460,5.85941763,222.55,222.53,4.49764341]
[1760004554639,31.6,222.54,222.53,4.49764341]
[1760004554841,31.6,222.54,222.53,5.17764341]
[1760004555063,4.49345929,222.55,222.53,5.17764341]
[1760004555288,36.09357418,222.54,222.53,4.49764341]
[1760004555450,31.6,222.54,222.53,4.49764341]
[1760004555653,31.6,222.54,222.53,5.17764341]
[1760004556050,31.6,222.54,222.53,4.49764341]
[1760004557258,31.6,222.54,222.53,5.17764341]
[1760004558746,134.8,222.56,222.55,4.49764341]
[1760004559067,166.4,222.56,222.55,5.17764341]
[1760004561455,166.4,222.56,222.55,4.49764341]
[1760004561647,170.89317038,222.56,222.55,4.49764341]
[1760004562042,166.4,222.56,222.55,4.49764341]
[1760004562346,166.4,222.56,222.55,5.17764341]
[1760004562561,166.4,222.56,222.55,4.49764341]
[1760004563374,170.89317038,222.56,222.55,4.49764341]
[1760004563688,172.25912872,222.56,222.55,4.49764341]
[1760004563855,183.49205467,222.56,222.53,4.49764341]
[1760004564178,1.36595834,222.54,222.53,4.49764341]
[1760004564351,32.94595834,222.54,222.53,4.49764341]
[1760004565454,37.43953252,222.54,222.53,4.49764341]
[1760004565657,37.43953252,222.54,222.5,0.68]
[1760004565658,37.43953252,222.54,222.51,4.49764341]
[1760004565865,36.07357418,222.54,222.51,4.49764341]
[1760004566075,1.36595834,222.52,222.51,4.49764341]
[1760004566273,32.94595834,222.52,222.51,4.49764341]
[1760004566970,20.8,222.54,222.53,4.49764341]
[1760004567175,52.38,222.54,222.53,4.49764341]
[1760004567480,58.23953252,222.54,222.53,4.49764341]
[1760004567676,53.74595834,222.54,222.53,4.49764341]
[1760004568057,58.23953252,222.54,222.51,4.49764341]
[1760004568249,1.36595834,222.53,222.51,4.49764341]
[1760004568475,31.58,222.52,222.51,4.49764341]
[1760004568850,32.94595834,222.52,222.51,4.49764341]
[1760004569547,37.4399364,222.52,222.51,4.49764341]
[1760004569751,37.4399364,222.52,222.49,4.49764341]
[1760004569960,1.36595834,222.5,222.49,4.49764341]
[1760004570164,32.94595834,222.5,222.49,4.49764341]
[1760004570589,32.94595834,222.5,222.45,4.49764341]
[1760004570881,1.36595834,222.46,222.45,4.49764341]
[1760004571079,32.94595834,222.46,222.45,4.49764341]
[1760004571484,20.8,222.47,222.45,5.19764341]
[1760004571660,5.86037518,222.5,222.47,4.49764341]
[1760004571864,31.58,222.49,222.47,4.49764341]
[1760004572680,1.36595834,222.48,222.47,4.49764341]
[1760004572868,1.36595834,222.48,222.45,4.49764341]
[1760004573073,31.58,222.47,222.45,4.49764341]
[1760004573386,32.94595834,222.47,222.45,4.49764341]
[1760004573682,36.07517439,222.47,222.45,5.19764341]
[1760004574877,4.49460275,222.49,222.48,4.49764341]
[1760004575081,4.49460275,222.49,222.48,5.19764341]
[1760004575082,31.58,222.49,222.48,5.19764341]
[1760004575658,36.07458402,222.49,222.48,5.19764341]
[1760004575983,37.44054236,222.49,222.48,4.49764341]
[1760004576361,36.07458402,222.49,222.48,4.49764341]
[1760004576562,37.44054236,222.49,222.48,5.19764341]
[1760004576763,32.94595834,222.49,222.48,5.19764341]
[1760004576971,31.58,222.49,222.48,5.19764341]
[1760004577772,37.44054236,222.49,222.48,4.49764341]
[1760004578864,37.44054236,222.49,222.46,4.49764341]
[1760004579064,1.36595834,222.47,222.46,4.49764341]
[1760004579268,32.94595834,222.47,222.46,4.49764341]
[1760004579894,37.44094642,222.47,222.46,4.49764341]
[1760004580070,37.44094642,222.47,222.44,4.49764341]
[1760004580276,1.36595834,222.45,222.44,4.49764341]
[1760004580466,1.36595834,222.45,222.44,5.19764341]
[1760004580467,32.94595834,222.45,222.44,5.19764341]
[1760004580795,31.58,222.45,222.44,5.19764341]
[1760004581173,5.86094642,222.47,222.46,4.49764341]
[1760004581383,37.44094642,222.47,222.46,5.19764341]
[1760004582058,37.44094642,222.47,222.46,4.49764341]
[1760004582279,37.44094642,222.47,222.46,5.19764341]
[1760004583968,36.07498808,222.47,222.46,5.19764341]
[1760004586287,36.07498808,222.47,222.46,4.49764341]
[1760004586589,36.07498808,222.47,222.42,5.15764341]
[1760004586794,2.13458556,222.44,222.43,0.66]
[1760004586970,33.71458556,222.44,222.43,0.66]
[1760004589389,31.58,222.44,222.43,0.66]
[1760004589786,6.62965129,222.47,222.46,4.49764341]
[1760004589983,38.20965129,222.47,222.46,5.15764341]
[1760004593302,38.20965129,222.47,222.46,4.49764341]
[1760004595099,134.8,222.48,222.46,5.15764341]